Cogmind - Beta 13 @@@ ROGUE MODE // 2024.04.29 @ 16:20:31 Player: rel Result: Destroyed by G-47 Trooper with Particle Gun Performance ------------- Evolutions (1) 500 Regions Visited (3) 600 Robots Destroyed (10) 50 Value Destroyed (299) 299 Prototype IDs (0) 0 Alien Tech Used (0) 0 Bonus (66) 66 TOTAL SCORE: 1515 Bonus ------- Follower Combat Kills 66 Cogmind --------- Core Integrity 0/400 Matter 300/300 Energy 100/100 System Corruption 0% Temperature Cool (15) Movement Core (100) Ox1 Location -9/Materials Parts ------- > --- POWER (1) -------- (None) > --- PROPULSION (3) --- (None) > --- UTILITY (3) ------ Small Storage Unit > --- WEAPON (2) ------- (None) > --- INVENTORY (8) ---- Shock Bomb Launcher Shock Bomb Launcher Shock Bomb Launcher Shock Bomb Launcher Mining Laser Peak State ------------ > --- POWER ------------ Improved Ion Engine > --- PROPULSION ------- Wheel Wheel > --- UTILITY ---------- Small Storage Unit Structural Scanner Improved Signal Interpreter > --- WEAPON ----------- High-powered Shotgun High-powered Shotgun > --- INVENTORY -------- Shock Bomb Launcher Shock Bomb Launcher Shock Bomb Launcher Shock Bomb Launcher Mining Laser Proton Bomb Trap Proton Bomb Trap Proton Bomb Trap [Rating: 16] Favorites ----------- Power Light Ion Engine Engine Light Ion Engine Propulsion Compact Wheel Wheel Compact Wheel Utility Small Storage Unit Device Structural Scanner Storage Small Storage Unit Processor Improved Signal Interpreter Weapon High-powered Shotgun Ballistic Gun High-powered Shotgun Launcher Grenade Launcher Special Weapon Mining Laser Impact Weapon Heavy Hammer Build | -11 -10 -10 -9 ------- Run | Yrd Mat Min Mat Slots Evolved 2 | . . . 2 Power . | . . . . Propulsion 1 | . . . 1 Utility 1 | . . . 1 Weapon . | . . . . Parts Attached 28 | 7 1 . 20 Power 5 | 2 . . 3 Engine 5 | 2 . . 3 Core . | . . . . Reactor . | . . . . Propulsion 6 | 2 . . 4 Treads . | . . . . Leg . | . . . . Wheel 6 | 2 . . 4 Hover . | . . . . Flight . | . . . . Utility 3 | 1 . . 2 Device 1 | . . . 1 Storage 1 | 1 . . . Processor 1 | . . . 1 Hackware . | . . . . Protection . | . . . . Artifact . | . . . . Weapon 14 | 2 1 . 11 Energy Gun . | . . . . Energy Cannon . | . . . . Ballistic Gun 7 | 2 . . 5 Ballistic Cannon . | . . . . Launcher 2 | . 1 . 1 Special Weapon 3 | . . . 3 Impact Weapon 2 | . . . 2 Slashing Weapon . | . . . . Piercing Weapon . | . . . . Special Melee Weapon . | . . . . Unidentified Prototypes . | . . . . Parts Lost 12 | . . . 12 Power 3 | . . . 3 Propulsion 4 | . . . 4 Utility 2 | . . . 2 Weapon 3 | . . . 3 Highest Loss Streak 8 | . . . 8 To Critical Strikes 1 | . . . 1 Average Slot Usage (%) 81 | . 85 85 81 Engine 9 | . 14 14 8 Wheel 24 | . 28 28 23 Device 5 | . . . 6 Storage 11 | . 14 14 11 Processor 8 | . . . 10 Ballistic Gun 13 | . 17 14 13 Launcher 4 | . 10 14 2 Special Weapon 1 | . . . 1 Impact Weapon 3 | . . . 4 Naked Turns . | . . . . Heaviest Build 19 | 12 14 14 19 Greatest Support 48 | 26 26 26 48 Greatest Overweight (x) 2 | . . . 2 Average Overweight (x) . | . . . . Largest Inventory Capacity 8 | 8 8 8 8 Average Capacity 7 | 7 8 8 8 Most Carried 8 | 5 3 8 8 Average Carried 6 | 2 1 5 7 Final Capacity 8 | 8 8 8 8 Final Carried 7 | 1 3 7 5 Class Distribution -------------------- 100% | Mutant Dominant Class ---------------- Mutant | -10/Materials Mutant | -10/Mines Mutant | -9/Materials Resources | -11 -10 -10 -9 ----------- Run | Yrd Mat Min Mat Matter Collected 602 | 268 . 35 299 Remotely . | . . . . Salvage Created 292 | . . 56 236 Parts 19 | . . 4 15 Haulers Intercepted . | . . . . Recyclers Shooed . | . . . . Parts Field Recycled . | . . . . Retrieved Matter . | . . . . Parts Self-Destructed . | . . . . Prevented . | . . . . Kills | -11 -10 -10 -9 ------- Run | Yrd Mat Min Mat Combat Hostiles Destroyed 9 | . . 4 5 Guns 5 | . . . 5 AOE 4 | . . 4 . Classes Destroyed 5 | . . 2 3 Builder 2 | . . . 2 Watcher 1 | . . . 1 Grunt 5 | . . 2 3 Sentry 2 | . . . 2 Assembled 2 | . . 2 . Best Kill Streak 5 | . . 2 5 Combat Bots Only 4 | . . 2 4 Max Kills in Single Turn 2 | . . 2 1 Gunslinging . | . . . . Exploded 2 | . . 2 . Melee . | . . . . Uniques/NPCs Destroyed . | . . . . Combat | -11 -10 -10 -9 -------- Run | Yrd Mat Min Mat Hostile Shots Fired 148 | . 14 4 130 Missed 35 | . 4 1 30 Damage Taken 1435 | . 83 114 1238 Core 422 | . 8 12 402 Absorbed by Shields . | . . . . Core Remaining (%) 96 | 100 . 92 . Volleys Fired 32 | . . 4 28 Largest 2 | . . 2 2 Hottest 100 | . . 50 100 Shots Fired 52 | . . 8 44 Gun 36 | . . 4 32 Cannon . | . . . . Launcher 7 | . . 4 3 Special 9 | . . . 9 Kinetic 36 | . . 4 32 Thermal 9 | . . . 9 Explosive 5 | . . 4 1 Electromagnetic 2 | . . . 2 Robot Hit Streak 6 | . . 3 6 Robot Miss Streak 5 | . . 1 5 Penetration Max . | . . . . Secondary Targets . | . . . . Shots Hit Robots 30 | . . 5 25 Core Hits 22 | . . 11 11 Critical Kills . | . . . . Critical Parts Destroyed 1 | . . . 1 Critical Strikes 1 | . . . 1 Smash 1 | . . . 1 Melee Attacks 11 | . . . 11 Impact 11 | . . . 11 Slashing . | . . . . Piercing . | . . . . Sneak Attacks 1 | . . . 1 Combat Hostiles . | . . . . Follow-up Attacks . | . . . . Damage Inflicted 1032 | . . 329 703 Guns 460 | . . 25 435 Cannons . | . . . . Explosions 360 | . . 300 60 Melee 177 | . . . 177 Ramming 11 | . . 4 7 Kinetic 460 | . . 25 435 Thermal 24 | . . . 24 Explosive 320 | . . 300 20 Electromagnetic 40 | . . . 40 Impact 177 | . . . 177 Slashing . | . . . . Piercing . | . . . . Highest Corruption . | . . . . Average Corruption . | . . . . Corruption Purged . | . . . . Corruption Blocked . | . . . . Overload Shots . | . . . . Overflow Damage 127 | . . . 127 Projectiles . | . . . . Explosions 8 | . . . 8 Melee 119 | . . . 119 Knockbacks 1 | . . . 1 Impact 1 | . . . 1 Kinetic . | . . . . Secondary . | . . . . Self-Inflicted Damage 91 | . . 68 23 Shots 4 | . . 3 1 Rammed 2 | . . 1 1 Targets Rammed 2 | . . 1 1 Kicked . | . . . . Crushed . | . . . . Highest Temperature 42 | . . 19 42 Average Temperature 12 | . . 9 12 Received Heat Transfer 411 | . 6 24 381 Siege Activations . | . . . . Robots Corrupted . | . . . . Combat Hostiles . | . . . . Parts Fried 1 | . . . 1 Impact Corruptions 4 | . . . 4 Robots Melted . | . . . . Combat Hostiles . | . . . . Parts Melted . | . . . . Heat Transferred 50 | . . . 50 Parts Sabotaged . | . . . . Parts Stolen . | . . . . Parts Stripped . | . . . . Power Chain Reactions . | . . . . Alert | -11 -10 -10 -9 ------- Run | Yrd Mat Min Mat Peak Influence 276 | . . 95 276 Initial 37 | . . . 37 Average 103 | . . 79 120 Maximum Alert Level 1 | . . . 1 Low Security (%) 87 | 100 100 100 83 Level 1 12 | . . . 16 Level 2 . | . . . . Level 3 . | . . . . Level 4 . | . . . . Level 5 . | . . . . High Security . | . . . . Max Security . | . . . . Squads Dispatched 2 | . . . 2 Investigation 2 | . . . 2 Extermination . | . . . . Reinforcement . | . . . . Assault . | . . . . Garrison . | . . . . Intercept . | . . . . Searches Triggered . | . . . . Construction Impeded . | . . . . Haulers Reinforced . | . . . . Active Scanning Responses . | . . . . Cargo Convoy Interrupts . | . . . . Stealth | -11 -10 -10 -9 --------- Run | Yrd Mat Min Mat Distress Signals 4 | . 1 . 3 Communications Jammed . | . . . . Distress Signals . | . . . . Times Spotted 34 | . 6 6 22 Peak Tracking Total 7 | . 6 3 7 Tactical Retreats . | . . . . Traps | -11 -10 -10 -9 ------- Run | Yrd Mat Min Mat Traps Triggered . | . . . . Indirectly . | . . . . Trap Hack Attempts . | . . . . Triggered . | . . . . Disarmed . | . . . . Reprogrammed 7 | . . . 7 Reused 4 | . . . 4 Traps Extracted . | . . . . Installed 4 | . . 1 3 Triggered 4 | . . . 4 Most Traps Carried 4 | . . 4 3 Machines | -11 -10 -10 -9 ---------- Run | Yrd Mat Min Mat Machines Disabled . | . . . . Max in Single Turn . | . . . . Machines Repaired . | . . . . Machines Dismantled . | . . . . Machines Sabotaged . | . . . . Overloaded Fab Kills . | . . . . Hacking | -11 -10 -10 -9 --------- Run | Yrd Mat Min Mat Machines Accessed 6 | . . . 6 Terminals 5 | . . . 5 Fabricators . | . . . . Repair Stations . | . . . . Recycling Units . | . . . . Scanalyzers 1 | . . . 1 Garrison Access . | . . . . Total Hacks 17 | . . . 17 Successful 10 | . . . 10 Failed 7 | . . . 7 Catastrophic . | . . . . Database Lockouts . | . . . . Manual . | . . . . Terminals 15 | . . . 15 Fabricators . | . . . . Repair Stations . | . . . . Recycling Units . | . . . . Scanalyzers 2 | . . . 2 Garrison Access . | . . . . Terminal Hacks 8 | . . . 8 Emergency Access Points 2 | . . . 2 Terminal Index 1 | . . . 1 Alert Level 1 | . . . 1 Locate Traps 1 | . . . 1 Reprogram Traps 2 | . . . 2 Zone Layout 1 | . . . 1 Fabricator Hacks . | . . . . Repair Station Hacks . | . . . . Recycling Unit Hacks . | . . . . Scanalyzer 2 | . . . 2 Insert Component 1 | . . . 1 Analyze 1 | . . . 1 Garrison Access Hacks . | . . . . Unauthorized Hacks . | . . . . Terminals . | . . . . Fabricators . | . . . . Repair Stations . | . . . . Recycling Units . | . . . . Scanalyzers . | . . . . Garrison Access . | . . . . Data Cores Recovered . | . . . . Used . | . . . . Hacking Detections 6 | . . . 6 Full Trace Events 1 | . . . 1 Feedback Events . | . . . . Feedback Blocked . | . . . . Robot Schematics Acquired . | . . . . Robots Built . | . . . . Authchips . | . . . . Time . | . . . . Total Robot Build Rating . | . . . . Part Schematics Acquired 1 | . . . 1 Parts Built . | . . . . Authchips . | . . . . Time . | . . . . Total Part Build Rating . | . . . . Parts Repaired . | . . . . Time . | . . . . Parts Recycled . | . . . . Recycled Matter . | . . . . Retrieved Matter . | . . . . Retrieved Components . | . . . . Parts Scanalyzed 1 | . . . 1 Part Schematics Acquired 1 | . . . 1 Parts Damaged . | . . . . Bothacking | -11 -10 -10 -9 ------------ Run | Yrd Mat Min Mat Used RIF Installer . | . . . . Robots Hacked . | . . . . Non-combat . | . . . . Combat . | . . . . Robot Hacks Applied . | . . . . Relay Couplers Released . | . . . . Fabnet Peak Effective % . | . . . . Robots Rewired . | . . . . Allies Hacked . | . . . . Hacks Repelled . | . . . . Allies | -11 -10 -10 -9 -------- Run | Yrd Mat Min Mat Total Allies 3 | . . 3 . Largest Group 3 | . . 3 3 Highest-Rated Group 40 | . . 40 40 Highest-Rated Ally 16 | . . 16 16 Total Orders . | . . . . Ally Attacks 46 | . . 7 39 Total Damage 450 | . . 35 415 Kills 4 | . . . 4 Allies Corrupted . | . . . . Allies Melted . | . . . . Intel | -11 -10 -10 -9 ------- Run | Yrd Mat Min Mat Robot Analysis Total . | . . . . Derelict Logs Recovered . | . . . . Drone Launches . | . . . . Drone Recoveries . | . . . . Exploration | -11 -10 -10 -9 ------------- Run | Yrd Mat Min Mat Turns Passed 956 | 49 40 130 737 Spaces Moved 782 | 47 41 121 573 Core 18 | 15 . . 3 Treads . | . . . . Legs . | . . . . Wheels 764 | 32 41 121 570 Hover . | . . . . Flight . | . . . . Fastest Speed 50 | 50 90 90 80 Average Speed 92 | 77 90 90 94 Slowest Speed 150 | 90 90 90 150 Overloaded Moves . | . . . . Propulsion Burnouts . | . . . . Robots Hopped . | . . . . Cave-ins Triggered . | . . . . Exploration Rate (%) 25 | 3 12 34 53 Regions Visited 3 Branch Regions 1 Pre-discovered Areas . | . . . . Known Exits Taken . | . . . . Unknown Exits Taken 3 | 1 1 1 . Scrap Searched . | . . . . Spaces Dug 8 | . . . 8 Terrain Destroyed 52 | . . 37 15 Melee 4 | . . . 4 Projectile 4 | . . . 4 AOE 44 | . . 37 7 Terrain Rammed . | . . . . Walls Destroyed . | . . . . Machines Disabled . | . . . . Actions | -11 -10 -10 -9 --------- Run | Yrd Mat Min Mat Total 924 | 58 43 135 688 Wait 38 | . . 3 35 Move 779 | 46 40 120 573 Hop . | . . . . Pick Up 18 | 5 2 5 6 Fast Attach 10 | 2 . . 8 Attach 6 | 4 . . 2 Detach . | . . . . Swap 12 | 1 1 . 10 Drop 12 | . . 1 11 Fire 32 | . . 4 28 Melee 11 | . . . 11 Ram 2 | . . 1 1 Kick . | . . . . Crush . | . . . . Escape Stasis . | . . . . Rewire . | . . . . Trap 4 | . . 1 3 Miscellaneous . | . . . . Route ------- -11/Scrapyard -10/Materials -10/Mines -9/Materials (discovered 2 exits: *Min / [*Sto]) History --------- Turn | Location | Event 9 | -11/Scrapyard | Discovered new exit (range 15) 50 | -11/Scrapyard | Entered Materials 68 | -10/Materials | Discovered new exit (range 11) 90 | -10/Materials | Entered Mines 106 | -10/Mines | Met a Derelict bent on vengeance 157 | -10/Mines | Found a hidden stash of uninstalled traps 158 | -10/Mines | Assembled infested the area 163 | -10/Mines | Assisted by a Guerilla fighting off Assembled 194 | -10/Mines | Discovered new exit (range 14) 199 | -10/Mines | Assisted by bots powering up and referring to "LRC-V3" 220 | -10/Mines | Entered Materials 220 | -9/Materials | Accompanied by 3 allies 220 | -9/Materials | Evolved 2 slots: Propulsion x1, Utility x1 309 | -9/Materials | Build established: Mutant 567 | -9/Materials | Discovered new exit (range 5) 568 | -9/Materials | Discovered new exit (range 15) 569 | -9/Materials | Identified exit to Mines 936 | -9/Materials | Core integrity fell below 50% 951 | -9/Materials | Core integrity fell below 20% 957 | -9/Materials | Destroyed by G-47 Trooper with Particle Gun Last Messages --------------- Engine. 00945_ G-34 Mercenary IFF system glitched. 00948_ U-05 Engineer lays Concrete. 00949_ Destroyed Imp. Heat Sink. 00949_ G-47 Trooper system corrupted by crushing effect. 00950_ U-05 Engineer lays Concrete. 00951_ G-34 Mercenary misfires. 00952_ U-05 Engineer lays Concrete. 00953_ G-47 Trooper IFF system glitched. 00954_ Imp. Signal Interpreter destroyed. 00954_ U-05 Engineer lays Concrete. 00954_ K-01 Serf collects debris. 00954_ U-05 Engineer lays Concrete. 00955_ Structural Scanner destroyed. 00956_ U-05 Engineer builds a Wall. 00956_ U-05 Engineer lays Concrete. 00956_ Hvy. Hammer severed. 00956_ M-13 Machinist repairs G-34 Mercenary. 00957_ K-01 Serf collects debris. Map ----- +----------------------------------------------------+ | ?????????????????????????????????????????????????? | | ?????????????????????????????????????????????????? | | ?????????????????????????????????????????????????? | | ?????????????????????????????????????????????????? | | ?????????????????????????????????????????????????? | | ?????????????????????????????????????????????????? | | ??????????????????????? ######??????????????????? | | ???????????????????????########??????????????????? | | ?????????????????????^? ??????????????????? | | ?????????????????????^???? ??????????????????? | | #####???????????????#^ ???????????? | | !###?????????????### ## #######???????????? | | "" #######????????????? # # ???????????? | | "" # #####????????????? # r # ???????????? | | "" ## ##????????????? # < # ???????????? | | ## ##??????????????# # ???????????? | | + ############????## ### # ???????????? | | T"" # ############ ## #### ## ???????????? | | """ # ## ########t#### ##????????????? | | #![! ## """ # # ############# | | #+####%#### """ # """k ; ############## | | =!% # """ # s""" ; # """ # | | + ]# g # # "T" """ # | | # # u# # """ ?? | | ###+#### # klsugm/ + ! """ # | | ## ## "T" # =%@ g # # # | | ## ## ############# ############### | | ## "##################### """############ | | ## ############???????### "############ | | ## ###?????????????????## !"###% # | | ## ! ##??????????????????## > ""### # | | = ## ##??##########??????## ### # | | %[ ## ##??##########??????## ### """ # | | *! ## ##??## ##??????## ! "### """"" # | | ########??## ##??????### !%###### """"" # | | #######??## ########### %###### """"" # | | #????????## ########### ##??## """ # | | #????????## # ## ###?## # | | #????????##!! # ## ##########+#### | | = ###########! + # ####### ## | | * !############ | # # ## | | [ # ## #! = = / ## | | # "# #! =# ## | | + # #!= [# [####### ## | | # ## # ############## ### | | |%############ # ########???### ### | | #################+#####+#####??????????## ##? | | T #####??????????## ##? | | #####?????????????## ##? | | #################### ### | +----------------------------------------------------+ Best States ------------- Heat Dissipation 28 Energy Generation 12 Energy Capacity 265 Matter Stores 300 Matter Capacity 300 Sight Range 16 Terrain Scan Density 10 Evasion (%) 50 Item Schematics ----------------- Shock Bomb Launcher | -9/Materials | Scanalyzed Robot Schematics ------------------ None Fabricated ------------ Nothing Alien Tech Used ----------------- None Achievements -------------- None Challenges ------------ None Game ------ Seed ThermicScatterBattery Manual? 0 Play Time 00:16:00 Cumulative 14.3 hours Start 2024.04.29 @ 16:02:28 End 2024.04.29 @ 16:20:31 Sessions 1 Manual Loads 0 Difficulty Rogue Special Mode None Game No. 18 Rogue 18 Adventurer 0 Explorer 0 Win Type - Total 0 Types 0/0/0/0/0/0/0/0/0 Lore% 16 Gallery% 23 Achievement% 17 Wizard Run 0 Options --------- Layout 1 ASCII 0 Keyboard 0 Movement Mouse Keybinds 0 Fullscreen 1 Font 32/SmallcapsGlow Map View 50x35 Zoom Use 0% Tactical HUD 1 Map Filters NONE Filters NONE Steam 1 RUN: 60983ff1-4f49-4a6a-8bd4-222315a07a71